bitfinex/quotes_SOLUSD_20260302
["timestamp","ask_amount","ask_price","bid_price","bid_amount"]
[1772411597389,2.24296955,84.137,84.091,41.62157661]
[1772411597390,2.24296955,84.137,84.12,7.75355198]
[1772411597603,11.88438866,84.144,84.12,7.75355198]
[1772411597793,2.24296955,84.143,84.12,7.75355198]
[1772411598101,2.24296955,84.143,84.11,7.75355198]
[1772411598294,2.24296955,84.143,84.12,7.75355198]
[1772411598878,2.24296955,84.143,84.11,7.75355198]
[1772411600099,11.88467115,84.142,84.11,7.75355198]
[1772411600400,2.24296955,84.141,84.11,7.75355198]
[1772411601190,2.24296955,84.139,84.11,7.75355198]
[1772411602000,2.24296955,84.139,84.103,11.89007084]
[1772411602304,2.24296955,84.137,84.1,7.75355198]
[1772411602493,2.24296955,84.137,84.091,29.72969758]
[1772411602494,2.24296955,84.129,84.091,11.89182877]
[1772411602884,2.24296955,84.129,84.1,7.75355198]
[1772411603687,2.24296955,84.129,84.09,0.2]
[1772411603688,2.24296955,84.119,84.09,7.95355198]
[1772411603895,2.24296955,84.129,84.1,7.75355198]
[1772411604088,11.88523615,84.138,84.11,7.75355198]
[1772411604089,2.24296955,84.137,84.11,7.75355198]
[1772411604283,2.24296955,84.135,84.11,7.75355198]
[1772411604717,2.24296955,84.129,84.09,7.95355198]
[1772411605000,41.59931539,84.136,84.09,7.95355198]
[1772411605001,2.24296955,84.119,84.09,7.95355198]
[1772411605399,2.24296955,84.119,84.1,7.75355198]
[1772411605711,2.24296955,84.128,84.1,7.75355198]
[1772411606083,2.24296955,84.128,84.11,7.75355198]
[1772411606388,2.24296955,84.128,84.1,7.75355198]
[1772411606389,2.24296955,84.127,84.1,7.75355198]
[1772411608302,2.24296955,84.125,84.09,7.95355198]
[1772411608504,2.24296955,84.119,84.09,0.2]
[1772411609102,2.24296955,84.119,84.09,19.84546084]
[1772411609896,2.24296955,84.119,84.09,12.09190886]
[1772411610127,11.8869315,84.126,84.09,12.09190886]
[1772411610128,2.24296955,84.125,84.1,7.75355198]
[1772411610399,2.24296955,84.125,84.09,19.84546084]
[1772411610608,2.24296955,84.123,84.1,7.75355198]
[1772411610903,11.88721411,84.124,84.09,12.09190886]
[1772411610904,2.24296955,84.119,84.09,7.95355198]
[1772411611203,2.24296955,84.119,84.09,0.2]
[1772411611406,2.24296955,84.119,84.09,7.95355198]
[1772411611804,2.24296955,84.119,84.09,0.2]
[1772411612606,2.24296955,84.109,84.09,0.2]
[1772411612796,2.24296955,84.099,84.07,7.95355198]
[1772411612983,2.24296955,84.099,84.07,19.84833267]
[1772411613184,2.24296955,84.099,84.08,7.75355198]
[1772411613785,41.60821702,84.118,84.08,7.75355198]
[1772411613786,2.24296955,84.109,84.08,7.75355198]
[1772411614007,2.24296955,84.099,84.07,7.95355198]
[1772411614400,2.24296955,84.099,84.07,0.2]
[1772411614706,101.04852706,84.118,84.07,0.2]
[1772411614707,2.24296955,84.087,84.07,0.2]
[1772411615200,2.24296955,84.087,84.038,29.74839508]
[1772411615201,2.14296955,84.079,84.05,7.75355198]
[1772411615399,2.14296955,84.079,84.041,11.89884767]
[1772411615906,2.14296955,84.079,84.05,7.75355198]
[1772411616796,2.14296955,84.077,84.05,7.75355198]
[1772411616997,2.14296955,84.077,84.04,7.75355198]
[1772411617193,2.14296955,84.077,84.05,7.75355198]
[1772411618306,7.75355198,84.07,84.04,7.75355198]
[1772411618507,2.14296955,84.069,84.04,7.75355198]
[1772411618719,2.14296955,84.079,84.05,7.75355198]
[1772411618897,2.14296955,84.077,84.05,7.75355198]
[1772411620399,11.89291701,84.084,84.06,7.75355198]
[1772411620790,14.03588656,84.084,84.06,7.75355198]
[1772411620994,2.14296955,84.069,84.047,1.02284436]
[1772411621213,2.14296955,84.059,84.03,7.75355198]
[1772411621692,2.14296955,84.049,84.007,29.75941501]
[1772411621894,7.75355198,84.08,84.011,11.90320315]
[1772411621895,2.14296955,84.039,84.011,11.90320315]
[1772411622104,2.14296955,84.039,84.02,7.75355198]
[1772411622303,2.14296955,84.048,84.02,7.75355198]
[1772411622818,2.14296955,84.048,84.021,11.90178645]
[1772411623212,14.0409623,84.048,84.021,11.90178645]
[1772411623408,2.14296955,84.047,84.02,7.75355198]
[1772411624018,2.14296955,84.047,84.011,11.90320315]
[1772411624221,2.14296955,84.047,84.012,0.18425284]
[1772411624615,2.14296955,84.047,84.01,0.2]
[1772411624806,2.14296955,84.019,83.985,3.69383402]
[1772411625002,2.14296955,84.009,83.985,3.69383402]
[1772411625204,2.14296955,84.009,83.981,11.90733297]
[1772411625611,2.14296955,84.009,83.981,12.09143587]
[1772411625808,2.14296955,84.019,83.99,7.75355198]
[1772411626002,2.14296955,84.019,83.991,0.1841029]
[1772411626203,2.14296955,84.027,84.0,7.75355198]
[1772411626610,2.14296955,84.037,84.01,7.75355198]
[1772411626815,41.64782598,84.038,84.01,7.75355198]
[1772411626816,2.14296955,84.035,84.01,7.75355198]
[1772411627325,11.89966204,84.036,83.98,7.75355198]
[1772411627326,2.14296955,84.019,83.98,7.75355198]
[1772411627626,2.14296955,84.009,83.98,7.75355198]
[1772411627805,2.14296955,84.009,83.973,0.18380817]
[1772411628007,2.14296955,84.009,83.98,7.75355198]
[1772411628798,2.14296955,84.007,83.973,0.18380817]
[1772411629002,2.14296955,84.007,83.97,7.75355198]
[1772411629224,2.14296955,84.007,83.971,11.90884236]
[1772411629528,2.14296955,84.007,83.98,7.75355198]
[1772411629710,2.14296955,84.007,83.971,11.90884236]
[1772411629917,2.14296955,84.007,83.98,7.75355198]
[1772411631120,2.14296955,84.007,83.96,7.75355198]
[1772411631121,11.90293187,84.013,83.99,7.75355198]
[1772411631529,2.14296955,84.012,83.981,11.90745525]
[1772411631829,2.14296955,84.018,83.99,7.75355198]
[1772411633406,2.14296955,84.026,83.992,0.18282862]
[1772411633608,2.14296955,84.019,83.99,7.75355198]
[1772411634017,2.14296955,84.019,83.986,11.90672777]
[1772411634208,2.14296955,84.019,83.99,7.75355198]
[1772411635135,2.14296955,84.019,83.986,11.90672777]
[1772411635136,2.14296955,84.019,83.981,11.90739628]
[1772411635521,2.14296955,84.017,83.982,0.18256299]
[1772411638641,2.14296955,84.015,83.99,7.75355198]
[1772411639239,2.14296955,84.015,83.983,11.90717168]
[1772411639636,2.14296955,84.015,83.99,7.75355198]
[1772411639839,11.90079497,84.028,84.001,0.1820498]
[1772411640163,2.14296955,84.027,83.991,0.1820498]
[1772411641210,2.14296955,84.019,83.992,11.90589579]
[1772411641413,2.14296955,84.009,83.98,7.75355198]
[1772411641633,2.14296955,84.009,83.941,59.56512541]
[1772411641634,2.14296955,84.009,83.97,7.75355198]
[1772411642022,2.14296955,84.009,83.97,7.93535394]
[1772411642433,2.14296955,84.009,83.98,7.75355198]
[1772411644342,2.14296955,83.999,83.97,7.75355198]
[1772411645529,2.14296955,83.989,83.96,7.75355198]
[1772411645724,7.75355198,83.98,83.95,7.75355198]
[1772411645939,7.75355198,83.98,83.889,61.8]
[1772411645940,2.14296955,83.979,83.94,7.75355198]
[1772411646141,2.14296955,83.979,83.95,7.75355198]
[1772411646333,2.14296955,83.977,83.94,7.75355198]
[1772411647625,2.14296955,83.977,83.941,0.18109189]
[1772411647944,2.14296955,83.977,83.95,7.75355198]
[1772411648323,2.14296955,83.969,83.934,11.914123]
[1772411648531,2.14296955,83.969,83.94,7.75355198]
[1772411650643,2.14296955,83.967,83.94,7.75355198]
[1772411652045,2.14296955,83.994,83.961,0.18064513]
[1772411652429,2.14296955,84.011,83.981,0.18053663]
[1772411652623,2.14296955,84.011,83.99,7.75355198]
[1772411652828,2.14296955,84.022,84.0,7.75355198]
[1772411653932,14.044756,84.021,84.0,7.75355198]
[1772411654233,2.14296955,84.02,83.99,7.75355198]
[1772411654630,2.14296955,84.019,83.99,7.75355198]
[1772411656528,2.14296955,84.017,83.98,7.77639678]
[1772411656732,41.65774,84.018,83.96,7.77639678]
[1772411656733,2.14296955,83.999,83.96,11.91043353]
[1772411656939,1.64296955,83.999,83.97,7.77639678]
[1772411657957,41.65774,84.018,83.96,7.77639678]
[1772411657958,7.77639678,83.99,83.96,7.77639678]
[1772411658257,7.77639678,83.99,83.955,11.91109923]
[1772411658638,11.90632106,83.989,83.96,7.77639678]
[1772411659056,2.14558857,83.988,83.955,11.91109923]
[1772411659233,2.14558857,83.988,83.96,7.77639678]
[1772411659843,2.14558857,83.988,83.955,11.91109923]
[1772411660235,2.14558857,83.988,83.96,7.77639678]
[1772411661152,2.14558857,83.986,83.96,7.77639678]
[1772411661353,2.14558857,83.979,83.951,11.9117104]
[1772411661735,2.14558857,83.979,83.96,7.77639678]
[1772411661935,2.14558857,83.979,83.95,7.77639678]
[1772411662355,2.14558857,83.969,83.94,7.77639678]
[1772411662679,2.14558857,83.959,83.93,7.77639678]
[1772411663153,2.14558857,83.959,83.931,11.91454885]
[1772411663660,2.14558857,83.957,83.931,11.91454885]
[1772411664854,9.92198535,83.97,83.94,7.77639678]
[1772411665055,2.14558857,83.97,83.94,7.77639678]
[1772411665259,2.14558857,83.97,83.94,8.45584957]
[1772411665935,2.14558857,83.968,83.94,8.45584957]
[1772411666341,2.14558857,83.968,83.94,7.77639678]
[1772411666644,2.14558857,83.968,83.933,11.91424697]
[1772411666843,2.14558857,83.959,83.933,11.91424697]
[1772411667774,2.14558857,83.959,83.922,0.67948223]
[1772411667955,2.14558857,83.947,83.92,0.2]
[1772411668142,2.14558857,83.947,83.921,11.91596858]
[1772411669161,2.14558857,83.947,83.921,12.5954604]
[1772411669660,2.14558857,83.954,83.93,7.77639678]
[1772411669871,2.14558857,83.976,83.94,7.77639678]
[1772411670362,2.14558857,83.969,83.94,7.77639678]
[1772411671445,2.14558857,83.967,83.94,7.77639678]
[1772411671764,2.14558857,83.967,83.933,11.9141524]
[1772411671946,2.14558857,83.959,83.93,7.77639678]
[1772411672152,2.14558857,83.949,83.92,8.65591672]
[1772411672353,2.14558857,83.949,83.921,11.91596858]
[1772411672861,2.14558857,83.949,83.92,0.2]
[1772411673063,2.14558857,83.939,83.92,7.97639678]
[1772411673245,7.77639678,83.95,83.921,11.91596858]
[1772411673446,7.77639678,83.95,83.922,2.14268561]
[1772411673660,7.77639678,83.96,83.923,11.91568461]
[1772411673958,7.77639678,83.96,83.931,2.14268561]
[1772411674662,7.77639678,83.95,83.923,14.05837022]
[1772411675161,2.14558857,83.95,83.924,2.14268561]
[1772411675662,9.92198535,83.95,83.924,2.14268561]
[1772411675860,11.91199418,83.949,83.924,2.14268561]
[1772411676379,2.14558857,83.958,83.931,2.14268561]
[1772411676861,2.14558857,83.969,83.941,2.14268561]
[1772411677063,2.14558857,83.959,83.93,7.77639678]
[1772411677746,2.14558857,83.959,83.932,2.14268561]
[1772411678067,14.05622505,83.959,83.932,2.14268561]
[1772411678462,2.14558857,83.958,83.932,2.14268561]
[1772411679460,2.14558857,83.958,83.925,11.915266]
[1772411680472,2.14558857,83.956,83.925,11.915266]
[1772411680853,2.14558857,83.956,83.93,3.27141005]
[1772411682052,11.91114287,83.955,83.921,11.91596685]
[1772411682258,11.91114287,83.955,83.92,0.2]
[1772411682259,2.14558857,83.939,83.92,0.2]
[1772411684377,11.91355524,83.938,83.92,0.2]
[1772411684677,2.14558857,83.944,83.895,2.14268561]
[1772411684851,2.14558857,83.959,83.921,2.14268561]
[1772411685053,2.14558857,83.959,83.895,11.91966148]
[1772411685054,2.14558857,83.997,83.951,2.14268561]
[1772411685250,2.14558857,83.995,83.97,3.27141005]
[1772411686468,2.14558857,83.995,83.97,7.77970074]
[1772411687167,2.14558857,83.995,83.971,11.9088733]
[1772411689182,2.042402,83.991,83.92,2.03326432]
[1772411689479,2.042402,83.979,83.95,7.77970074]
[1772411690363,2.042402,83.979,83.951,2.03326432]
[1772411691171,2.042402,83.977,83.952,11.91156851]
[1772411691476,2.042402,83.989,83.96,7.77970074]
[1772411691784,2.042402,83.988,83.96,7.77970074]
[1772411692164,2.042402,83.979,83.95,7.77970074]
[1772411693282,2.042402,83.977,83.95,7.77970074]
[1772411695679,2.042402,83.975,83.95,7.77970074]
[1772411695974,2.042402,83.982,83.961,2.03326432]
[1772411696177,2.042402,83.988,83.961,2.03326432]
[1772411696380,59.51491411,84.013,83.951,11.9117104]
[1772411696381,2.042402,83.998,83.952,2.03326432]
[1772411696569,2.042402,83.989,83.96,7.77970074]
[1772411696773,2.042402,83.989,83.951,11.9117104]
[1772411696972,2.042402,83.979,83.951,11.9117104]
[1772411698081,2.042402,83.977,83.95,7.77970074]
[1772411698287,2.042402,83.977,83.94,7.77970074]
[1772411698584,2.042402,83.977,83.86,61.8]
[1772411698585,2.042402,83.959,83.922,2.03326432]
[1772411698785,2.042402,83.959,83.923,11.91568461]
[1772411698981,2.042402,83.959,83.93,7.77970074]
[1772411700070,2.042402,83.957,83.931,11.91454885]
[1772411700472,2.042402,83.964,83.941,2.03326432]
[1772411700677,29.76970158,83.978,83.941,2.03326432]
[1772411700678,13.95102453,83.973,83.941,2.03326432]
[1772411700878,2.042402,83.972,83.941,2.03326432]
[1772411701865,2.042402,83.969,83.934,2.03326432]
[1772411702098,2.042402,83.959,83.93,7.77970074]
[1772411702269,2.042402,83.957,83.93,7.77970074]
[1772411702794,2.042402,83.957,83.931,11.91454885]
[1772411702971,2.042402,83.977,83.95,7.77970074]
[1772411703301,2.042402,83.977,83.941,2.03326432]
[1772411705302,2.042402,83.975,83.95,7.77970074]
[1772411705472,2.042402,83.975,83.942,11.91298753]
[1772411706182,2.042402,83.975,83.943,2.03326432]
[1772411707497,2.042402,83.975,83.95,3.26968173]
[1772411707797,11.90747081,83.981,83.951,2.03326432]
[1772411708288,13.94987281,83.981,83.96,3.26968173]
[1772411709775,13.94987281,83.981,83.952,11.91156851]
[1772411709978,13.94987281,83.981,83.953,2.03326432]
[1772411710202,2.042402,83.981,83.96,3.26968173]
[1772411710393,2.042402,83.986,83.961,2.03326432]
[1772411710573,3.69383402,84.02,83.98,3.26968173]
[1772411710574,2.042402,84.007,83.98,3.26968173]
[1772411710895,2.042402,84.007,83.99,3.26968173]
[1772411712690,2.042402,84.007,83.99,7.77694994]
[1772411713779,2.042402,84.007,83.991,11.90603755]
[1772411714592,2.042402,84.007,83.99,7.77694994]
[1772411714798,2.16339971,84.005,83.97,7.77694994]
[1772411714972,2.16339971,83.999,83.97,7.77694994]
[1772411716087,2.16339971,83.997,83.97,7.77694994]
[1772411718092,11.90532882,83.996,83.97,19.68590315]
[1772411718291,2.13480557,83.995,83.97,19.68590315]
[1772411718506,2.13480557,83.995,83.97,19.68931672]
[1772411719889,7.78036351,84.0,83.971,0.58804832]
[1772411720077,2.13480557,84.009,83.981,0.58804832]
[1772411720276,2.13480557,84.009,83.98,7.78036351]
[1772411721392,2.13480557,84.009,83.974,0.58784288]
[1772411722207,11.90362822,84.008,83.98,7.78036351]
[1772411722384,2.13480557,84.007,83.98,7.78036351]
[1772411724897,2.13480557,84.005,83.98,7.78036351]
[1772411725478,11.90187639,84.021,83.991,0.58685054]
[1772411725804,2.13480557,84.02,84.0,7.78036351]
[1772411726809,2.13480557,84.03,84.01,7.78036351]
[1772411726989,2.13480557,84.03,84.002,0.58665886]
[1772411727187,2.13480557,84.03,84.001,11.90462018]
[1772411728002,2.13480557,84.028,84.001,11.90462018]
[1772411728698,37.5283525,84.04,84.001,11.90462018]
[1772411728699,2.13480557,84.036,84.011,0.58628208]
[1772411729001,2.13480557,84.035,84.011,0.58628208]
[1772411730190,2.13480557,84.035,84.012,11.90306146]
[1772411731205,2.13480557,84.033,84.01,7.78036351]
[1772411733401,7.43436907,84.044,84.02,8.36574085]
[1772411733589,7.43436907,84.044,84.03,7.78036351]
[1772411734302,1e-08,84.044,84.031,0.58520258]
[1772411735889,0.1,84.09,84.045,0.58502983]
[1772411736100,0.1,84.09,84.07,3.26149015]
[1772411736293,0.1,84.09,84.033,41.65030404]
[1772411736294,2.23480557,84.09,84.034,0.8691822]
[1772411736498,2.23480557,84.09,84.06,3.26149015]
[1772411736804,11.89216187,84.089,84.034,0.72702063]
[1772411736999,2.13480557,84.079,84.04,3.26149015]
[1772411737307,2.13480557,84.079,84.05,3.26149015]
[1772411737887,2.13480557,84.077,84.06,3.26149015]
[1772411740209,2.13480557,84.075,84.06,3.26149015]
[1772411742198,2.13480557,84.075,84.044,0.58435844]
[1772411742199,2.13480557,84.075,84.052,11.89726401]
[1772411743005,11.8942836,84.074,84.052,11.89726401]
[1772411743206,2.13480557,84.073,84.05,3.26149015]
[1772411747015,11.89456656,84.072,84.05,3.26149015]
[1772411747208,14.02468764,84.072,84.05,3.26149015]
[1772411747409,2.13012108,84.071,84.05,3.26149015]
[1772411749608,11.89484953,84.07,84.05,3.26149015]
[1772411749810,11.89484953,84.07,84.02,3.26149015]
[1772411749811,2.13012108,84.059,84.02,3.26149015]
[1772411750004,2.13012108,84.049,84.02,3.26149015]
[1772411750211,2.13012108,84.049,84.021,0.58266435]
[1772411750408,2.13012108,84.066,84.031,0.58252075]
[1772411751232,2.13012108,84.064,84.032,12.48274923]
[1772411751721,2.13012108,84.064,84.033,0.5823788]
[1772411752303,15.15638894,84.07,84.04,3.26149015]
[1772411752510,2.13012108,84.078,84.051,0.58223848]
[1772411753225,2.13012108,84.076,84.05,3.26149015]
[1772411754716,2.13012108,84.069,84.04,3.26149015]
[1772411756918,2.13012108,84.067,84.041,11.89895408]
[1772411759027,2.13012108,84.065,84.04,0.92979159]
[1772411759217,2.13012108,84.065,84.03,3.84291992]
[1772411759527,2.13012108,84.065,84.04,3.26149015]
[1772411759924,2.13012108,84.065,84.005,3.69383402]
[1772411759925,2.13012108,84.059,84.03,3.26149015]
[1772411760128,2.13012108,84.049,84.02,15.16329101]
[1772411760509,2.13012108,84.049,84.01,3.84266257]
[1772411760716,2.13012108,84.049,84.02,3.26149015]
[1772411761019,11.89790811,84.049,84.02,3.26149015]
[1772411761220,2.13012108,84.062,84.031,0.58117242]
[1772411761525,2.13012108,84.062,84.04,3.26149015]
[1772411761930,29.73514182,84.076,84.015,41.65922751]
[1772411761931,2.13012108,84.072,84.05,3.26149015]
[1772411763013,11.89216187,84.089,84.06,3.26149015]
[1772411763219,2.13012108,84.088,84.06,3.8424111]
[1772411763517,2.13012108,84.088,84.06,3.26149015]
[1772411763713,2.13012108,84.088,84.053,11.89714853]
[1772411764433,2.13012108,84.088,84.06,3.26149015]
[1772411765219,2.13012108,84.086,84.06,3.26149015]
[1772411765638,2.13012108,84.086,84.061,11.89612305]
[1772411767110,11.89244472,84.087,84.062,0.58043511]
[1772411767318,0.1,84.1,84.08,3.26149015]
[1772411767537,2.13012108,84.124,84.09,3.26149015]
[1772411768533,2.13012108,84.124,84.1,3.26149015]
[1772411769532,2.13012108,84.123,84.1,3.26149015]
[1772411769930,2.13012108,84.123,84.09,3.26149015]
[1772411771136,5.36086188,84.153,84.065,3.69383402]
[1772411771137,11.88749673,84.122,84.1,3.84146135]
[1772411771337,2.13012108,84.133,84.1,3.26149015]
[1772411771635,2.13012108,84.129,84.1,3.26149015]
[1772411772034,2.13012108,84.129,84.09,3.26149015]
[1772411772443,2.13012108,84.119,84.08,3.26149015]
[1772411772646,2.13012108,84.099,84.061,0.57974717]
[1772411772839,2.13012108,84.099,84.07,3.26149015]
[1772411773226,2.13012108,84.089,84.055,11.89687248]
[1772411773543,2.13012108,84.079,84.048,11.89789319]
[1772411773741,2.06645475,84.097,84.051,0.57952825]
[1772411773922,2.06645475,84.089,84.06,3.26149015]
[1772411774447,2.06645475,84.089,84.05,3.26149015]
[1772411774835,2.06645475,84.089,84.06,3.26149015]
[1772411775140,2.06645475,84.087,84.06,3.26149015]
[1772411775439,2.06645475,84.104,84.08,3.26149015]
[1772411775661,2.06645475,84.104,84.071,0.57931433]
[1772411776751,2.06645475,84.104,84.073,0.57920921]
[1772411777137,13.90713171,84.103,84.073,0.57920921]
[1772411777452,2.01694944,84.102,84.073,0.57920921]
[1772411778261,2.01694944,84.102,84.074,11.8942836]
[1772411778659,3.26149015,84.12,84.066,0.57890104]
[1772411778660,2.01694944,84.099,84.066,0.57890104]
[1772411779745,2.01694944,84.097,84.067,11.895274]
[1772411780342,2.01694944,84.097,84.07,3.84019159]
[1772411780548,2.01694944,84.105,84.08,3.25938806]
[1772411782068,2.01694944,84.112,84.081,0.57860336]
[1772411782257,2.01694944,84.12,84.091,0.57860336]
[1772411782458,11.88805639,84.119,84.091,0.57860336]
[1772411782884,2.01694944,84.135,84.11,3.25938806]
[1772411783076,7.4722562,84.142,84.1,3.25938806]
[1772411783077,2.01694944,84.133,84.1,3.25938806]
[1772411783273,2.01694944,84.119,84.09,3.25938806]
[1772411783682,2.01694944,84.129,84.101,0.57841057]
[1772411783883,2.01694944,84.129,84.11,3.25938806]
[1772411784482,2.01694944,84.127,84.103,11.89010933]
[1772411784879,7.75488987,84.12,84.09,7.75488987]
[1772411785190,2.01694944,84.119,84.09,7.75488987]
[1772411785486,2.01694944,84.119,84.084,11.89286903]
[1772411785689,2.01694944,84.119,84.09,7.75488987]
[1772411785874,2.01694944,84.119,84.08,7.75488987]
[1772411786687,2.01694944,84.117,84.09,7.75488987]
[1772411787393,2.01694944,84.117,84.08,7.75488987]
[1772411788876,2.01694944,84.115,84.08,7.75488987]
[1772411789194,2.01694944,84.115,84.081,11.89329337]
[1772411790998,2.01694944,84.113,84.09,7.75488987]
[1772411792402,2.01694944,84.113,84.081,0.57776981]
[1772411792793,2.01694944,84.113,84.09,7.75488987]
[1772411793507,2.01694944,84.111,84.09,7.75488987]
[1772411794096,2.01694944,84.109,84.08,7.75488987]
[1772411794906,2.01694944,84.099,84.06,7.75488987]
[1772411795085,41.61118508,84.112,84.024,59.50635253]
[1772411795086,2.01694944,84.089,84.05,8.33231613]
[1772411795285,2.01694944,84.089,84.037,11.89952044]
[1772411795485,2.01694944,84.067,84.031,11.9003701]
[1772411796006,2.01694944,84.067,84.041,0.57734283]
[1772411796300,2.01694944,84.067,84.04,7.75488987]
[1772411797398,7.75488987,84.06,84.03,7.75488987]
[1772411797595,2.01694944,84.057,84.03,7.75488987]
[1772411797797,7.75488987,84.05,84.01,7.75488987]
[1772411797996,2.01694944,84.049,84.02,7.75488987]
[1772411799814,2.01694944,84.047,84.02,7.75488987]
[1772411800203,2.01694944,84.047,84.03,7.75488987]
[1772411800415,11.89734814,84.053,84.03,7.75488987]
[1772411800714,11.89734814,84.053,84.031,0.57693982]
[1772411801010,2.01694944,84.055,84.031,0.57693982]
[1772411801906,2.01694944,84.054,84.03,7.75488987]
[1772411802614,2.01694944,84.054,84.02,19.65675661]
[1772411802905,2.01694944,84.054,84.03,7.75488987]
[1772411803815,2.01694944,84.052,84.03,7.75488987]
[1772411804312,2.01694944,84.052,84.03,19.65529222]
[1772411804513,2.01694944,84.052,84.03,15.1634576]
[1772411806517,5.28000469,84.05,84.02,3.83954119]
[1772411806720,2.01694944,84.039,84.01,3.26305525]
[1772411806924,2.01694944,84.029,83.99,3.26305525]
[1772411807100,2.21660208,84.019,83.99,3.26305525]
[1772411807289,2.21660208,84.019,83.981,11.90745525]
[1772411807498,3.26305525,84.02,83.981,11.90745525]
[1772411807499,2.21660208,84.009,83.981,11.90745525]
[1772411808793,2.21660208,84.009,83.982,0.57627054]
[1772411809297,2.21660208,84.009,83.99,7.77751258]
[1772411809493,2.21660208,84.026,83.991,0.57620038]
[1772411809697,2.21660208,84.026,84.001,0.57620038]
[1772411810522,14.11770382,84.026,84.001,0.57620038]
[1772411810892,14.11770382,84.026,84.002,11.90447846]
[1772411811706,2.21660208,84.034,84.01,7.77751258]
[1772411811913,2.21660208,84.032,84.01,7.77751258]
[1772411813421,2.21660208,84.03,84.004,11.90419503]
[1772411813604,2.21660208,84.03,84.01,7.77751258]
[1772411814505,2.21660208,84.083,84.025,0.57586148]
[1772411814713,2.21660208,84.083,84.06,7.77751258]
[1772411815222,2.21660208,84.092,84.07,7.77751258]
[1772411815415,2.21660208,84.092,84.08,7.77751258]
[1772411817421,2.21660208,84.089,84.06,7.77751258]
[1772411817622,2.21660208,84.089,84.07,7.77751258]
[1772411817829,2.21660208,84.089,84.06,7.77751258]
[1772411818026,2.21660208,84.089,84.07,7.77751258]
[1772411818611,2.21660208,84.089,84.06,7.77751258]
[1772411819133,11.8923033,84.088,84.06,7.77751258]
[1772411819318,2.21660208,84.087,84.06,7.77751258]
[1772411820522,2.21660208,84.079,84.05,7.77751258]
[1772411820723,2.21660208,84.079,84.042,11.89874891]
[1772411821327,2.21660208,84.077,84.05,7.77751258]
[1772411822128,7.77751258,84.07,84.04,7.77751258]
[1772411822427,41.62801207,84.078,84.03,7.77751258]
[1772411822428,2.21660208,84.059,84.03,7.77751258]
[1772411822728,2.21660208,84.059,84.02,7.77751258]
[1772411822935,2.21660208,84.049,84.021,11.90170085]
[1772411823434,2.21660208,84.049,83.949,13.28000562]
[1772411823435,2.21660208,84.087,84.041,0.57529869]
[1772411823618,2.21660208,84.087,84.06,7.77751258]
[1772411823822,2.21660208,84.096,84.07,7.77751258]
[1772411824130,11.89131339,84.095,84.07,7.77751258]
[1772411824538,14.10791547,84.095,84.07,7.77751258]
[1772411825632,2.21660208,84.105,84.08,7.77751258]
[1772411825822,2.21660208,84.105,84.09,7.77751258]
[1772411826024,7.77751258,84.13,84.09,9.30624025]
[1772411826621,41.59980982,84.135,84.1,7.77751258]
[1772411827016,7.77751258,84.13,84.09,7.77751258]
[1772411827217,11.88650762,84.129,84.09,7.77751258]
[1772411827431,11.88650762,84.129,84.1,7.77751258]
[1772411827834,11.8850949,84.139,84.1,7.77751258]
[1772411828033,11.8850949,84.139,84.12,7.77751258]
[1772411828231,11.8850949,84.139,84.111,1.52861304]
[1772411828844,2.21660208,84.138,84.1,7.77751258]
[1772411829033,2.21660208,84.138,84.11,7.77751258]
[1772411829829,2.21660208,84.136,84.11,7.77751258]
[1772411830043,11.88537742,84.137,84.081,11.89319099]
[1772411830044,2.21660208,84.119,84.081,11.89319099]
[1772411830225,2.21660208,84.119,84.082,1.52850102]
[1772411830940,2.21660208,84.119,84.09,7.77751258]
[1772411831136,2.21660208,84.129,84.1,7.77751258]
[1772411831840,2.21660208,84.127,84.09,7.77751258]
[1772411832841,2.21660208,84.127,84.1,7.77751258]
[1772411836042,2.08822737,84.125,84.1,7.77751258]
[1772411836244,2.08822737,84.125,84.101,11.89046503]
[1772411836440,2.08822737,84.125,84.1,7.77751258]
[1772411839549,2.0017042,84.137,84.111,1.52794702]
[1772411840050,2.0017042,84.137,84.12,7.77751258]
[1772411840426,2.0017042,84.137,84.12,7.75322461]
[1772411840645,2.0017042,84.137,84.111,1.52794702]
[1772411841444,2.0017042,84.146,84.12,7.75322461]
[1772411841622,11.88377096,84.149,84.121,1.52786292]
[1772411841827,2.0017042,84.129,84.1,7.75322461]
[1772411842229,2.0017042,84.119,84.085,1.52786292]
[1772411842445,2.0017042,84.109,84.08,7.75322461]
[1772411842755,2.0017042,84.109,84.08,19.64658736]
[1772411843447,2.0017042,84.119,84.091,1.52778074]
[1772411843649,2.0017042,84.117,84.088,11.89218399]
[1772411844647,2.0017042,84.117,84.075,1.52774036]
[1772411844838,2.0017042,84.109,84.08,7.75322461]
[1772411845150,2.0017042,84.109,84.075,1.52774036]
[1772411845342,2.0017042,84.109,84.07,7.75322461]
[1772411845744,2.0017042,84.099,84.068,1.52770044]
[1772411845945,2.0017042,84.099,84.07,7.75322461]
[1772411847746,11.88975816,84.106,84.08,7.75322461]
[1772411847947,2.0017042,84.105,84.07,9.28084658]
[1772411848146,11.88975816,84.106,84.045,11.89838776]
[1772411848147,2.0017042,84.079,84.045,11.89838776]